[Event "*** Titled Tuesday Blitz"]
[Site "Chess.com"]
[Date "2018.11.06"]
[Round "6"]
[White "evgenysharapov"]
[Black "Alopekos"]
[Result "0-1"]
[WhiteElo "2400"]
[BlackElo "2479"]
[TimeControl "180+2"]
[EndTime "14:22:49 PST"]
[Termination "Alopekos won by resignation"]

1. c4 {[%clk 0:03:01.9]} 1... e5 {[%clk 0:03:00.6]} 2. Nc3 {[%clk 0:03:02.5]}
2... Nc6 {[%clk 0:03:01.7]} 3. Nf3 {[%clk 0:03:03]} 3... Nf6 {[%clk 0:03:02.1]}
4. g3 {[%clk 0:03:03.9]} 4... Bc5 {[%clk 0:03:03.3]} 5. Bg2 {[%clk 0:03:03.7]}
5... d6 {[%clk 0:02:48.3]} 6. O-O {[%clk 0:03:01.3]} 6... a6 {[%clk 0:02:48.8]}
7. e3 {[%clk 0:03:01]} 7... O-O {[%clk 0:02:45.3]} 8. d4 {[%clk 0:03:01.4]} 8...
Ba7 {[%clk 0:02:45.9]} 9. h3 {[%clk 0:02:51.1]} 9... Re8 {[%clk 0:02:44.9]} 10.
b3 {[%clk 0:02:49.5]} 10... Bf5 {[%clk 0:02:35.3]} 11. Bb2 {[%clk 0:02:47.1]}
11... exd4 {[%clk 0:02:33]} 12. Nxd4 {[%clk 0:02:46.6]} 12... Nxd4 {[%clk
0:02:28.7]} 13. exd4 {[%clk 0:02:47.2]} 13... Ne4 {[%clk 0:02:30.1]} 14. Nxe4
{[%clk 0:02:44.3]} 14... Bxe4 {[%clk 0:02:31.1]} 15. Qd2 {[%clk 0:02:41.5]}
15... Bxg2 {[%clk 0:02:10.1]} 16. Kxg2 {[%clk 0:02:41.7]} 16... d5 {[%clk
0:01:51.2]} 17. Rfe1 {[%clk 0:02:32.2]} 17... Qd7 {[%clk 0:01:46.1]} 18. Rxe8+
{[%clk 0:02:24.4]} 18... Rxe8 {[%clk 0:01:46.4]} 19. Re1 {[%clk 0:02:24.3]}
19... Rxe1 {[%clk 0:01:16.3]} 20. Qxe1 {[%clk 0:02:24.6]} 20... h6 {[%clk
0:01:09.4]} 21. Qe5 {[%clk 0:01:46.4]} 21... c6 {[%clk 0:00:53.8]} 22. g4 {[%clk
0:01:38.5]} 22... Qd8 {[%clk 0:00:42.1]} 23. cxd5 {[%clk 0:01:24.1]} 23... cxd5
{[%clk 0:00:12.7]} 24. Ba3 {[%clk 0:01:11.9]} 24... Bb8 {[%clk 0:00:08]} 25. Qf5
{[%clk 0:00:59.8]} 25... Bc7 {[%clk 0:00:04]} 26. Bc5 {[%clk 0:00:52.3]} 26...
Bb8 {[%clk 0:00:02.9]} 27. a4 {[%clk 0:00:51.7]} 27... Bc7 {[%clk 0:00:04]} 28.
Qf3 {[%clk 0:00:37.2]} 28... Bb8 {[%clk 0:00:03.2]} 29. Qe3 {[%clk 0:00:32.3]}
29... Qd7 {[%clk 0:00:03.3]} 30. f4 {[%clk 0:00:20.9]} 30... Bc7 {[%clk
0:00:04.7]} 31. Kf3 {[%clk 0:00:21.4]} 31... Bb8 {[%clk 0:00:06.1]} 32. f5
{[%clk 0:00:22.5]} 32... Qc7 {[%clk 0:00:06.1]} 33. Qe8+ {[%clk 0:00:20.2]}
33... Kh7 {[%clk 0:00:06.8]} 34. Ke2 {[%clk 0:00:20]} 34... Qh2+ {[%clk
0:00:07.6]} 35. Kd1 {[%clk 0:00:19.6]} 35... Bf4 {[%clk 0:00:08.4]} 36. Qe2
{[%clk 0:00:18.3]} 36... Qxh3 {[%clk 0:00:08.5]} 37. Kc2 {[%clk 0:00:19.1]}
37... Qe3 {[%clk 0:00:05.6]} 38. Qxe3 {[%clk 0:00:19.9]} 38... Bxe3 {[%clk
0:00:07.5]} 39. Kd3 {[%clk 0:00:21.1]} 39... Bf4 {[%clk 0:00:08.3]} 40. Ke2
{[%clk 0:00:21.9]} 40... g6 {[%clk 0:00:07]} 41. Kf3 {[%clk 0:00:22.5]} 41...
Bc7 {[%clk 0:00:07.8]} 42. Be7 {[%clk 0:00:20.5]} 42... h5 {[%clk 0:00:04.3]}
43. gxh5 {[%clk 0:00:20.6]} 43... gxf5 {[%clk 0:00:04.1]} 44. Bg5 {[%clk
0:00:20.1]} 44... Bd6 {[%clk 0:00:03.8]} 45. Bf4 {[%clk 0:00:19.9]} 45... Bf8
{[%clk 0:00:04]} 46. Be3 {[%clk 0:00:19.5]} 46... Bh6 {[%clk 0:00:04.3]} 47.
Bxh6 {[%clk 0:00:17.6]} 47... Kxh6 {[%clk 0:00:05.6]} 48. Kf4 {[%clk 0:00:19]}
48... Kxh5 {[%clk 0:00:06.8]} 49. Kxf5 {[%clk 0:00:20.4]} 49... b5 {[%clk
0:00:05.5]} 50. axb5 {[%clk 0:00:20.4]} 50... axb5 {[%clk 0:00:03]} 51. Kf6
{[%clk 0:00:20.6]} 51... Kg4 {[%clk 0:00:04.1]} 52. Ke5 {[%clk 0:00:18]} 52...
f5 {[%clk 0:00:04]} 53. Kxd5 {[%clk 0:00:19.1]} 53... f4 {[%clk 0:00:05.6]} 54.
Kc6 {[%clk 0:00:19.4]} 54... f3 {[%clk 0:00:06.9]} 55. d5 {[%clk 0:00:20.9]}
55... f2 {[%clk 0:00:08.5]} 56. d6 {[%clk 0:00:22.3]} 56... f1=Q {[%clk
0:00:09.9]} 57. d7 {[%clk 0:00:23.6]} 57... Qf3+ {[%clk 0:00:06.3]} 58. Kc7
{[%clk 0:00:22.9]} 58... Qf4+ {[%clk 0:00:06.4]} 59. Kb7 {[%clk 0:00:23]} 59...
Qd6 {[%clk 0:00:05.8]} 60. Kc8 {[%clk 0:00:23.8]} 60... Qc6+ {[%clk 0:00:06]}
61. Kd8 {[%clk 0:00:25.1]} 61... Kf5 {[%clk 0:00:04]} 62. Ke7 {[%clk 0:00:25.8]}
62... Qe6+ {[%clk 0:00:04.2]} 0-1

[Event "*** Titled Tuesday Blitz"]
[Site "Chess.com"]
[Date "2018.11.06"]
[Round "6"]
[White "GhostOfGreenval"]
[Black "VerdeNotte"]
[Result "1/2-1/2"]
[WhiteElo "2703"]
[BlackElo "2816"]
[TimeControl "180+2"]
[EndTime "14:23:00 PST"]
[Termination "Game drawn by agreement"]

1. d4 {[%clk 0:03:01.9]} 1... Nf6 {[%clk 0:03:00.7]} 2. Bf4 {[%clk 0:03:02.5]}
2... b6 {[%clk 0:02:59.9]} 3. c4 {[%clk 0:03:02.4]} 3... Bb7 {[%clk 0:02:59.6]}
4. Nc3 {[%clk 0:03:04]} 4... e6 {[%clk 0:02:58.8]} 5. a3 {[%clk 0:03:05.2]} 5...
g6 {[%clk 0:02:54.2]} 6. e3 {[%clk 0:03:00.2]} 6... Bg7 {[%clk 0:02:54.5]} 7.
Nf3 {[%clk 0:03:01.7]} 7... O-O {[%clk 0:02:55.1]} 8. Be2 {[%clk 0:03:00.9]}
8... d6 {[%clk 0:02:56]} 9. O-O {[%clk 0:03:02.1]} 9... Nbd7 {[%clk 0:02:56.6]}
10. h3 {[%clk 0:03:03.7]} 10... Qe7 {[%clk 0:02:57.2]} 11. Bh2 {[%clk
0:03:03.4]} 11... Ne4 {[%clk 0:02:53.8]} 12. Nxe4 {[%clk 0:02:59.3]} 12... Bxe4
{[%clk 0:02:55.7]} 13. Nd2 {[%clk 0:03:00.6]} 13... Bb7 {[%clk 0:02:56.6]} 14.
Bf3 {[%clk 0:03:02.2]} 14... Bxf3 {[%clk 0:02:56.8]} 15. Qxf3 {[%clk 0:03:04.1]}
15... e5 {[%clk 0:02:57]} 16. Rfe1 {[%clk 0:03:00.5]} 16... Rae8 {[%clk
0:02:52.4]} 17. dxe5 {[%clk 0:02:54.4]} 17... Nxe5 {[%clk 0:02:51.8]} 18. Qe2
{[%clk 0:02:52.4]} 18... a5 {[%clk 0:02:46.1]} 19. Rad1 {[%clk 0:02:49.9]} 19...
a4 {[%clk 0:02:45.7]} 20. Ne4 {[%clk 0:02:47]} 20... Nxc4 {[%clk 0:02:43.7]} 21.
Qxc4 {[%clk 0:02:44.8]} 21... Qxe4 {[%clk 0:02:44.4]} 22. Qxc7 {[%clk
0:02:43.1]} 22... Rc8 {[%clk 0:02:19]} 23. Qxd6 {[%clk 0:02:38.1]} 23... Bxb2
{[%clk 0:02:17.2]} 24. Qxb6 {[%clk 0:02:36]} 24... Bxa3 {[%clk 0:02:12.1]} 25.
Rd4 {[%clk 0:02:34.9]} 25... Qc2 {[%clk 0:02:11]} 26. Qb5 {[%clk 0:02:22.3]}
26... Ra8 {[%clk 0:02:00.5]} 27. Red1 {[%clk 0:02:19.2]} 27... Be7 {[%clk
0:01:45.3]} 28. R1d2 {[%clk 0:02:08.4]} 28... Qc3 {[%clk 0:01:38.5]} 29. Rd7
{[%clk 0:01:46.4]} 29... Bf6 {[%clk 0:01:33.1]} 30. R7d3 {[%clk 0:00:14.5]}
30... Qa1+ {[%clk 0:01:33]} 31. Rd1 {[%clk 0:00:15.7]} 31... Qb2 {[%clk
0:01:34.5]} 32. Qxb2 {[%clk 0:00:04.1]} 32... Bxb2 {[%clk 0:01:36.4]} 33. Bd6
{[%clk 0:00:06]} 33... Rfd8 {[%clk 0:01:03.2]} 34. Ba3 {[%clk 0:00:07.1]} 34...
Rxd3 {[%clk 0:01:01.9]} 35. Rxd3 {[%clk 0:00:09]} 35... Bxa3 {[%clk 0:01:00.1]}
36. Rxa3 {[%clk 0:00:08.2]} 36... Kf8 {[%clk 0:01:01.7]} 37. Kf1 {[%clk
0:00:09.8]} 37... Ke7 {[%clk 0:01:03.2]} 38. Ke2 {[%clk 0:00:11.7]} 38... Kd6
{[%clk 0:01:04.7]} 39. Kd3 {[%clk 0:00:08.7]} 39... Kc5 {[%clk 0:01:06.2]} 40.
Kc3 {[%clk 0:00:09.7]} 40... g5 {[%clk 0:01:04.3]} 41. Ra1 {[%clk 0:00:07.5]}
41... h5 {[%clk 0:00:59.7]} 42. Rh1 {[%clk 0:00:03.5]} 42... a3 {[%clk
0:00:43.6]} 43. Ra1 {[%clk 0:00:04.7]} 43... g4 {[%clk 0:00:40.7]} 44. hxg4
{[%clk 0:00:03.7]} 44... hxg4 {[%clk 0:00:42.6]} 45. f3 {[%clk 0:00:04.7]} 45...
a2 {[%clk 0:00:39]} 46. Kb3 {[%clk 0:00:04.3]} 46... Kd5 {[%clk 0:00:33.5]} 47.
Rxa2 {[%clk 0:00:03]} 47... Rxa2 {[%clk 0:00:34]} 48. Kxa2 {[%clk 0:00:04.9]}
48... Kc4 {[%clk 0:00:34.6]} 49. e4 {[%clk 0:00:06.4]} 49... g3 {[%clk
0:00:33.2]} 50. Kb2 {[%clk 0:00:04.9]} 50... Kd4 {[%clk 0:00:31.5]} 51. Kc2
{[%clk 0:00:06]} 51... Ke3 {[%clk 0:00:32.8]} 52. e5 {[%clk 0:00:07.6]} 52...
Kf4 {[%clk 0:00:16.8]} 53. Kd3 {[%clk 0:00:08.8]} 53... Kxe5 {[%clk 0:00:18.3]}
54. Ke3 {[%clk 0:00:10.3]} 54... Kf5 {[%clk 0:00:19.9]} 55. Kd3 {[%clk
0:00:08.3]} 55... Kf4 {[%clk 0:00:21]} 56. Kd2 {[%clk 0:00:07.8]} 56... Kf5
{[%clk 0:00:21.2]} 57. Kd3 {[%clk 0:00:09]} 57... Ke5 {[%clk 0:00:21.4]} 58. Ke3
{[%clk 0:00:10]} 58... Kf5 {[%clk 0:00:22.9]} 59. f4 {[%clk 0:00:04.4]} 59...
Kg4 {[%clk 0:00:23.8]} 60. Ke4 {[%clk 0:00:05.9]} 60... f6 {[%clk 0:00:22]} 61.
Ke3 {[%clk 0:00:05.9]} 61... Kh5 {[%clk 0:00:21.4]} 62. Kf3 {[%clk 0:00:07.1]}
62... Kh4 {[%clk 0:00:22.9]} 63. f5 {[%clk 0:00:07.5]} 63... Kg5 {[%clk
0:00:23.9]} 64. Kxg3 {[%clk 0:00:08.9]} 64... Kxf5 {[%clk 0:00:25.8]} 65. Kf3
{[%clk 0:00:10.7]} 65... Kg5 {[%clk 0:00:27.2]} 66. Kg3 {[%clk 0:00:12.2]} 66...
f5 {[%clk 0:00:28.4]} 1/2-1/2

[Event "*** Titled Tuesday Blitz"]
[Site "Chess.com"]
[Date "2018.11.06"]
[Round "6"]
[White "IvanRadivojevic"]
[Black "Me_ch_an"]
[Result "1-0"]
[WhiteElo "2404"]
[BlackElo "2215"]
[TimeControl "180+2"]
[EndTime "14:23:07 PST"]
[Termination "IvanRadivojevic won on time"]

1. e4 {[%clk 0:03:00.9]} 1... c5 {[%clk 0:03:00.1]} 2. Nc3 {[%clk 0:03:01.8]}
2... a6 {[%clk 0:03:00.5]} 3. g3 {[%clk 0:03:02.5]} 3... b5 {[%clk 0:03:00.2]}
4. Bg2 {[%clk 0:03:03.8]} 4... Bb7 {[%clk 0:03:01]} 5. d3 {[%clk 0:03:05.2]}
5... e6 {[%clk 0:03:02]} 6. f4 {[%clk 0:03:05.9]} 6... Nf6 {[%clk 0:03:01.5]} 7.
Nh3 {[%clk 0:03:06.5]} 7... d5 {[%clk 0:03:02.3]} 8. Nf2 {[%clk 0:03:06.6]} 8...
b4 {[%clk 0:03:00.1]} 9. Ne2 {[%clk 0:03:07.5]} 9... dxe4 {[%clk 0:03:00.5]} 10.
Nxe4 {[%clk 0:03:08.4]} 10... Nxe4 {[%clk 0:02:59.8]} 11. Bxe4 {[%clk
0:03:10.3]} 11... Bxe4 {[%clk 0:02:59.8]} 12. dxe4 {[%clk 0:03:12.2]} 12...
Qxd1+ {[%clk 0:03:00.5]} 13. Kxd1 {[%clk 0:03:14.1]} 13... Nc6 {[%clk
0:03:00.7]} 14. c3 {[%clk 0:03:15.3]} 14... Be7 {[%clk 0:02:58.2]} 15. Kc2
{[%clk 0:03:15.7]} 15... O-O {[%clk 0:02:52.1]} 16. Be3 {[%clk 0:03:14.2]} 16...
Rac8 {[%clk 0:02:52.8]} 17. Rhd1 {[%clk 0:03:14.5]} 17... Rfd8 {[%clk 0:02:53]}
18. Rxd8+ {[%clk 0:03:09.1]} 18... Rxd8 {[%clk 0:02:54.9]} 19. Rd1 {[%clk
0:03:10.8]} 19... Rxd1 {[%clk 0:02:53.1]} 20. Kxd1 {[%clk 0:03:12.7]} 20... Na5
{[%clk 0:02:53.5]} 21. cxb4 {[%clk 0:03:06.3]} 21... cxb4 {[%clk 0:02:53.4]} 22.
Kc2 {[%clk 0:03:03.4]} 22... f6 {[%clk 0:02:48]} 23. Kd3 {[%clk 0:02:24.5]}
23... Kf7 {[%clk 0:02:44.3]} 24. Bb6 {[%clk 0:02:18.8]} 24... Nb7 {[%clk
0:02:42.3]} 25. Nd4 {[%clk 0:02:05.6]} 25... Bd6 {[%clk 0:02:42.8]} 26. Nc6
{[%clk 0:02:01.2]} 26... Ke8 {[%clk 0:01:37.8]} 27. Kc4 {[%clk 0:02:01.3]} 27...
Kd7 {[%clk 0:01:37.8]} 28. Nxb4 {[%clk 0:02:02.2]} 28... Bxb4 {[%clk 0:01:38.3]}
29. Kxb4 {[%clk 0:02:04.1]} 29... Kc6 {[%clk 0:01:39.3]} 30. Bd4 {[%clk
0:01:50.5]} 30... Nd6 {[%clk 0:01:38.6]} 31. e5 {[%clk 0:01:45.5]} 31... fxe5
{[%clk 0:01:40.5]} 32. Bxe5 {[%clk 0:01:45.1]} 32... Nf5 {[%clk 0:01:41]} 33.
Ka5 {[%clk 0:01:43.1]} 33... Kb7 {[%clk 0:01:41.2]} 34. Kb4 {[%clk 0:01:31.1]}
34... Kc6 {[%clk 0:01:41]} 35. Kc4 {[%clk 0:01:31.3]} 35... g6 {[%clk
0:01:32.8]} 36. Bd4 {[%clk 0:01:32]} 36... Nd6+ {[%clk 0:01:23.1]} 37. Kd3
{[%clk 0:01:28.2]} 37... Kd5 {[%clk 0:01:23.8]} 38. b4 {[%clk 0:01:24.8]} 38...
Nb5 {[%clk 0:01:23.7]} 39. Bb2 {[%clk 0:01:24.4]} 39... Nd6 {[%clk 0:01:23.4]}
40. a4 {[%clk 0:01:21.9]} 40... Ne4 {[%clk 0:01:23.5]} 41. Bd4 {[%clk
0:01:16.8]} 41... Nd6 {[%clk 0:01:19.6]} 42. Bc5 {[%clk 0:01:12.7]} 42... Nb7
{[%clk 0:01:19.1]} 43. Be3 {[%clk 0:01:10.9]} 43... Nd6 {[%clk 0:01:18.3]} 44.
Bc5 {[%clk 0:01:11.2]} 44... Nc4 {[%clk 0:01:18.7]} 45. Kc3 {[%clk 0:00:55.8]}
45... e5 {[%clk 0:01:09.2]} 46. fxe5 {[%clk 0:00:54.5]} 46... Nxe5 {[%clk
0:01:11.1]} 47. Be3 {[%clk 0:00:48.1]} 47... Ng4 {[%clk 0:01:10.4]} 48. Bg1
{[%clk 0:00:49.2]} 48... Nf6 {[%clk 0:01:09.8]} 49. b5 {[%clk 0:00:49.2]} 49...
axb5 {[%clk 0:01:11.7]} 50. axb5 {[%clk 0:00:51.1]} 50... Ne4+ {[%clk
0:01:03.9]} 51. Kb4 {[%clk 0:00:49]} 51... Kd6 {[%clk 0:00:47.7]} 52. Kc4 {[%clk
0:00:46.1]} 52... Ng5 {[%clk 0:00:47.2]} 53. Be3 {[%clk 0:00:38.8]} 53... Nf3
{[%clk 0:00:33.9]} 54. Bf4+ {[%clk 0:00:39.3]} 54... Kd7 {[%clk 0:00:34.4]} 55.
b6 {[%clk 0:00:40.4]} 55... Kc8 {[%clk 0:00:34]} 56. h4 {[%clk 0:00:35.7]} 56...
Kb7 {[%clk 0:00:33.6]} 57. Bc7 {[%clk 0:00:36.8]} 57... h5 {[%clk 0:00:30.5]}
58. Kd5 {[%clk 0:00:37.7]} 58... g5 {[%clk 0:00:30.7]} 59. Ke4 {[%clk
0:00:36.2]} 59... Nd2+ {[%clk 0:00:28.5]} 60. Kd3 {[%clk 0:00:36.4]} 60... Nf3
{[%clk 0:00:28.6]} 61. Ke3 {[%clk 0:00:35.4]} 61... g4 {[%clk 0:00:24.1]} 62.
Kf4 {[%clk 0:00:34.4]} 62... Kc6 {[%clk 0:00:19.2]} 63. Kf5 {[%clk 0:00:34.3]}
1-0

[Event "*** Titled Tuesday Blitz"]
[Site "Chess.com"]
[Date "2018.11.06"]
[Round "6"]
[White "pultineviciuspaulius"]
[Black "GMHess"]
[Result "1/2-1/2"]
[WhiteElo "2582"]
[BlackElo "2665"]
[TimeControl "180+2"]
[EndTime "14:23:16 PST"]
[Termination "Game drawn - insufficient material"]

1. Nf3 {[%clk 0:03:01.9]} 1... g6 {[%clk 0:02:54.9]} 2. d4 {[%clk 0:02:53.2]}
2... Bg7 {[%clk 0:02:56.8]} 3. e4 {[%clk 0:02:54.4]} 3... c6 {[%clk 0:02:52.3]}
4. h3 {[%clk 0:02:51]} 4... d6 {[%clk 0:02:52.8]} 5. Bc4 {[%clk 0:02:48.7]} 5...
d5 {[%clk 0:02:48.6]} 6. exd5 {[%clk 0:02:49.3]} 6... cxd5 {[%clk 0:02:50.5]} 7.
Bb3 {[%clk 0:02:49.7]} 7... Nc6 {[%clk 0:02:51.8]} 8. c3 {[%clk 0:02:50]} 8...
Nf6 {[%clk 0:02:51.9]} 9. O-O {[%clk 0:02:51.4]} 9... O-O {[%clk 0:02:52.7]} 10.
Re1 {[%clk 0:02:52.7]} 10... Bf5 {[%clk 0:02:53.6]} 11. Bf4 {[%clk 0:02:53.9]}
11... b5 {[%clk 0:02:48.8]} 12. Ne5 {[%clk 0:02:48.2]} 12... Na5 {[%clk
0:02:39.7]} 13. Bc2 {[%clk 0:02:31.2]} 13... Bxc2 {[%clk 0:02:36.7]} 14. Qxc2
{[%clk 0:02:33.1]} 14... Rc8 {[%clk 0:02:38]} 15. Qe2 {[%clk 0:02:30]} 15... Nc4
{[%clk 0:02:11.3]} 16. Nxc4 {[%clk 0:02:14.5]} 16... dxc4 {[%clk 0:02:00.5]} 17.
Be5 {[%clk 0:02:08.9]} 17... e6 {[%clk 0:01:57.6]} 18. a4 {[%clk 0:02:08.5]}
18... b4 {[%clk 0:01:49.6]} 19. cxb4 {[%clk 0:02:08.7]} 19... Nd5 {[%clk
0:01:50.8]} 20. b5 {[%clk 0:02:06.6]} 20... Bxe5 {[%clk 0:01:43.4]} 21. dxe5
{[%clk 0:01:45]} 21... Nf4 {[%clk 0:01:40.3]} 22. Qf3 {[%clk 0:01:46.4]} 22...
Nd3 {[%clk 0:01:40.4]} 23. Re2 {[%clk 0:01:47.8]} 23... Qg5 {[%clk 0:01:04.4]}
24. Nc3 {[%clk 0:01:03.5]} 24... Nxe5 {[%clk 0:00:51.3]} 25. Qb7 {[%clk
0:01:04.7]} 25... Nd3 {[%clk 0:00:20.9]} 26. Ne4 {[%clk 0:00:32.2]} 26... Qe5
{[%clk 0:00:14.1]} 27. Qe7 {[%clk 0:00:33.5]} 27... Kg7 {[%clk 0:00:10.2]} 28.
Nc3 {[%clk 0:00:34.2]} 28... Qc5 {[%clk 0:00:07.7]} 29. Qxc5 {[%clk 0:00:34.4]}
29... Nxc5 {[%clk 0:00:08.9]} 30. Rd1 {[%clk 0:00:32.9]} 30... Rfd8 {[%clk
0:00:08.5]} 31. Red2 {[%clk 0:00:33.3]} 31... Rd3 {[%clk 0:00:05.9]} 32. Kf1
{[%clk 0:00:28.1]} 32... e5 {[%clk 0:00:06.8]} 33. Rxd3 {[%clk 0:00:19.5]} 33...
Nxd3 {[%clk 0:00:08.1]} 34. b3 {[%clk 0:00:19.7]} 34... Nb2 {[%clk 0:00:04.9]}
35. Rb1 {[%clk 0:00:09.7]} 35... cxb3 {[%clk 0:00:06.4]} 36. Rxb2 {[%clk
0:00:08.3]} 36... Rxc3 {[%clk 0:00:07.2]} 37. a5 {[%clk 0:00:08]} 37... Rc1+
{[%clk 0:00:03.3]} 38. Ke2 {[%clk 0:00:08.5]} 38... Ra1 {[%clk 0:00:04.9]} 39.
b6 {[%clk 0:00:08.8]} 39... Rxa5 {[%clk 0:00:04.9]} 40. Rxb3 {[%clk 0:00:07.8]}
40... axb6 {[%clk 0:00:05]} 41. Rxb6 {[%clk 0:00:09.7]} 41... f5 {[%clk
0:00:06]} 42. Rb7+ {[%clk 0:00:10.4]} 42... Kh6 {[%clk 0:00:06.9]} 43. g3 {[%clk
0:00:11.9]} 43... g5 {[%clk 0:00:08.2]} 44. g4 {[%clk 0:00:11]} 44... Ra2+
{[%clk 0:00:07.8]} 45. Kf1 {[%clk 0:00:11.1]} 45... fxg4 {[%clk 0:00:07.4]} 46.
hxg4 {[%clk 0:00:13]} 46... Kg6 {[%clk 0:00:08.9]} 47. Rb6+ {[%clk 0:00:13.4]}
47... Kg7 {[%clk 0:00:10.1]} 48. Re6 {[%clk 0:00:14.9]} 48... Ra5 {[%clk
0:00:10]} 49. Kg2 {[%clk 0:00:16.2]} 49... Ra4 {[%clk 0:00:06.2]} 50. Kg3 {[%clk
0:00:15.8]} 50... e4 {[%clk 0:00:06.2]} 51. Re7+ {[%clk 0:00:15.8]} 51... Kg6
{[%clk 0:00:07.2]} 52. Re6+ {[%clk 0:00:16.9]} 52... Kf7 {[%clk 0:00:08.6]} 53.
Rh6 {[%clk 0:00:17.1]} 53... Kg7 {[%clk 0:00:10.2]} 54. Re6 {[%clk 0:00:18.2]}
54... Ra3+ {[%clk 0:00:10.4]} 55. Kg2 {[%clk 0:00:18.7]} 55... Ra4 {[%clk
0:00:11.3]} 56. Kg3 {[%clk 0:00:19.9]} 56... h6 {[%clk 0:00:11.4]} 57. Kh3
{[%clk 0:00:14.5]} 57... Rd4 {[%clk 0:00:08.2]} 58. Kg3 {[%clk 0:00:11.1]} 58...
Rc4 {[%clk 0:00:08.6]} 59. Kg2 {[%clk 0:00:11.3]} 59... e3 {[%clk 0:00:08.9]}
60. f3 {[%clk 0:00:06.3]} 60... Rc2+ {[%clk 0:00:09.9]} 61. Kg3 {[%clk
0:00:07.3]} 61... Rc3 {[%clk 0:00:09]} 62. Kg2 {[%clk 0:00:08.6]} 62... Kf7
{[%clk 0:00:08.6]} 63. Re4 {[%clk 0:00:09.8]} 63... Kf6 {[%clk 0:00:09.3]} 64.
Kf1 {[%clk 0:00:10.4]} 64... Rc5 {[%clk 0:00:03.3]} 65. Ke2 {[%clk 0:00:11.6]}
65... Re5 {[%clk 0:00:03.4]} 66. Kxe3 {[%clk 0:00:12.9]} 66... Rxe4+ {[%clk
0:00:04.4]} 67. Kxe4 {[%clk 0:00:14.8]} 67... Ke6 {[%clk 0:00:05.8]} 68. f4
{[%clk 0:00:15]} 68... gxf4 {[%clk 0:00:07.7]} 69. Kxf4 {[%clk 0:00:16.8]} 69...
Kf6 {[%clk 0:00:09.4]} 70. Kg3 {[%clk 0:00:17.9]} 70... Kg5 {[%clk 0:00:11]} 71.
Kh3 {[%clk 0:00:19.3]} 71... h5 {[%clk 0:00:12.8]} 72. gxh5 {[%clk 0:00:21.2]}
72... Kxh5 {[%clk 0:00:14.7]} 1/2-1/2